Cogmind - Beta 15 @@@ ROGUE MODE // 2025.07.12 @ 14:41:54 Player: Dingot Result: Core destroyed Performance ------------- Evolutions (0) 0 Regions Visited (4) 800 Robots Destroyed (17) 85 Value Destroyed (445) 445 Prototype IDs (23) 460 Alien Tech Used (0) 0 Bonus (300) 300 TOTAL SCORE: 2090 Bonus ------- Aligned with FarCom 300 Cogmind --------- Core Integrity 0/250 Matter 262/300 Energy 29/100 System Corruption 0% Temperature Critical (711) Movement Core (350) Ox6 Location -9/Mines Parts ------- > --- POWER (1) -------- (None) > --- PROPULSION (2) --- Light Treads > --- UTILITY (2) ------ Small Storage Unit Utility Shielding > --- WEAPON (2) ------- Guided Plasma Cannon Grenade Launcher > --- INVENTORY (8) ---- Light Treads Light Treads Light Treads Light Treads Medium Laser Rocket Launcher Peak State ------------ > --- POWER ------------ Ion Engine > --- PROPULSION ------- Light Treads Light Treads > --- UTILITY ---------- Small Storage Unit Utility Shielding > --- WEAPON ----------- Guided Plasma Cannon Rocket Launcher > --- INVENTORY -------- Light Treads Light Treads Light Treads Light Treads Medium Laser Grenade Launcher [Rating: 15] Favorites ----------- Power Ion Engine Engine Ion Engine Power Core Light Nuclear Core Propulsion Light Treads Treads Light Treads Utility Small Storage Unit Storage Small Storage Unit Protection Utility Shielding Weapon Medium Laser Energy Gun Medium Laser Energy Cannon Guided Plasma Cannon Ballistic Gun Light Assault Rifle Launcher Grenade Launcher Build | -11 -10 -10 -10 -9 ------- Run | Yrd Mat Min Exi Min Slots Evolved . | . . . . . Power . | . . . . . Propulsion . | . . . . . Utility . | . . . . . Weapon . | . . . . . Parts Attached 11 | 6 3 1 1 . Power 2 | 1 1 . . . Engine 1 | 1 . . . . Core 1 | . 1 . . . Reactor . | . . . . . Propulsion 2 | 2 . . . . Treads 2 | 2 . . . . Leg . | . . . . . Wheel . | . . . . . Hover . | . . . . . Flight . | . . . . . Utility 2 | 1 1 . . . Device . | . . . . . Storage 1 | 1 . . . . Processor . | . . . . . Hackware . | . . . . . Protection 1 | . 1 . . . Artifact . | . . . . . Weapon 5 | 2 1 1 1 . Energy Gun 1 | 1 . . . . Energy Cannon 1 | . . . 1 . Ballistic Gun 1 | 1 . . . . Ballistic Cannon . | . . . . . Launcher 2 | . 1 1 . . Special Weapon . | . . . . . Impact Weapon . | . . . . . Slashing Weapon . | . . . . . Piercing Weapon . | . . . . . Special Melee Weapon . | . . . . . Unidentified Prototypes . | . . . . . Parts Lost 4 | . 1 1 . 2 Power 2 | . . 1 . 1 Propulsion 1 | . . . . 1 Utility . | . . . . . Weapon 1 | . 1 . . . Highest Loss Streak 2 | . 1 1 . 2 To Critical Strikes . | . . . . . Average Backups 4 | . 3 5 5 6 Power . | . . . . . Propulsion 3 | . 2 4 4 4 Utility . | . . . . . Weapon 1 | . . 1 1 2 Tool/Special . | . . . . . Unused Backups 4 | . . . . 4 Power . | . . . . . Propulsion 4 | . . . . 4 Utility . | . . . . . Weapon . | . . . . . Tool/Special . | . . . . . Average Slot Usage (%) 89 | . 83 88 100 85 Engine 10 | . 12 3 14 8 Core 3 | . 1 10 . . Treads 27 | . 28 28 28 19 Storage 14 | . 14 14 14 14 Protection 8 | . 1 14 14 14 Energy Gun 10 | . 10 14 7 . Energy Cannon 2 | . . . 6 14 Ballistic Gun 5 | . 11 . . . Launcher 6 | . 3 3 14 14 Peak Build Rating 15 | 6 8 8 15 14 Average Rating 7 | 3 6 7 11 12 On Entrance 7 | . 6 8 8 14 Naked Turns . | . . . . . Heaviest Build 24 | 13 15 17 24 . Greatest Support 40 | 40 40 40 40 . Greatest Overweight (x) . | . . . . . Average Overweight (x) . | . . . . . Largest Inventory Capacity 8 | 8 8 8 8 8 Average Capacity 7 | 6 8 8 8 8 Most Carried 7 | 5 7 7 6 6 Average Carried 4 | . 3 5 5 6 Final Capacity 8 | 8 8 8 8 8 Final Carried 6 | . 6 5 6 6 Class Distribution -------------------- 100% | Mutant Dominant Class ---------------- Mutant | -10/Materials Mutant | -10/Mines Mutant | -10/Exiles Mutant | -9/Mines Resources | -11 -10 -10 -10 -9 ----------- Run | Yrd Mat Min Exi Min Matter Collected 407 | 194 177 36 . . Remotely . | . . . . . Salvage Created 629 | 25 437 48 . 119 Parts 35 | 1 24 2 . 8 Haulers Intercepted 2 | . 2 . . . Recyclers Shooed 2 | . 2 . . . Parts Field Recycled . | . . . . . Retrieved Matter . | . . . . . Parts Self-Destructed . | . . . . . Prevented . | . . . . . Kills | -11 -10 -10 -10 -9 ------- Run | Yrd Mat Min Exi Min Combat Hostiles Destroyed 12 | . 7 2 . 3 Guns 6 | . 6 . . . Cannons 3 | . . . . 3 AOE 2 | . . 2 . . Classes Destroyed 6 | 1 5 . . . Tunneler 1 | 1 . . . . Hauler 2 | . 2 . . . Recycler 1 | . 1 . . . Watcher 1 | . 1 . . . Swarmer 2 | . 2 . . . Grunt 10 | . 5 2 . 3 Best Kill Streak 4 | 1 4 2 . 2 Combat Bots Only 3 | . 3 2 . 2 Max Kills in Single Turn 1 | 1 1 1 . 1 Gunslinging . | . . . . . Exploded 1 | . . 1 . . Melee . | . . . . . Uniques/NPCs Destroyed . | . . . . . Combat | -11 -10 -10 -10 -9 -------- Run | Yrd Mat Min Exi Min Hostile Shots Fired 91 | . 67 18 . 6 Missed 25 | . 21 4 . . Hits 66 | . 46 14 . 6 Projectile 66 | . 46 14 . 6 Critical Strikes 2 | . 1 1 . . Damage Taken 840 | . 506 175 . 159 Core 252 | . 80 84 . 88 Absorbed by Shields . | . . . . . Core Remaining (%) 100 | 100 . . . . Volleys Fired 81 | 2 57 9 . 13 Largest 2 | 2 2 2 . 1 Hottest 120 | 70 70 83 . 120 Shots Fired 122 | 4 92 13 . 13 Gun 104 | 4 91 9 . . Cannon 13 | . . . . 13 Launcher 5 | . 1 4 . . Special . | . . . . . Kinetic 41 | 2 39 . . . Thermal 76 | 2 52 9 . 13 Explosive 5 | . 1 4 . . Electromagnetic . | . . . . . Robot Hit Streak 10 | 1 10 3 . 5 Robot Miss Streak 5 | 1 3 5 . . Penetration Max . | . . . . . Secondary Targets . | . . . . . Shots Hit Robots 67 | 1 59 5 . 2 Core Hits 34 | 1 24 7 . 2 Critical Kills . | . . . . . Critical Parts Destroyed . | . . . . . Critical Strikes 4 | . 4 . . . Burn 4 | . 4 . . . Melee Attacks . | . . . . . Impact . | . . . . . Slashing . | . . . . . Piercing . | . . . . . Sneak Attacks . | . . . . . Combat Hostiles . | . . . . . Follow-up Attacks . | . . . . . Damage Inflicted 1314 | 20 648 244 . 402 Guns 716 | 20 647 49 . . Cannons 402 | . . . . 402 Explosions 187 | . . 187 . . Melee . | . . . . . Ramming 9 | . 1 8 . . Kinetic 207 | 7 200 . . . Thermal 911 | 13 447 49 . 402 Explosive 187 | . . 187 . . Electromagnetic . | . . . . . Impact . | . . . . . Slashing . | . . . . . Piercing . | . . . . . Highest Corruption . | . . . . . Average Corruption . | . . . . . Corruption Purged . | . . . . . Corruption Blocked . | . . . . . Overload Shots . | . . . . . Overflow Damage 40 | . . . . 40 Projectiles 40 | . . . . 40 Explosions . | . . . . . Melee . | . . . . . Knockbacks . | . . . . . Impact . | . . . . . Kinetic . | . . . . . Secondary . | . . . . . Self-Inflicted Damage . | . . . . . Shots . | . . . . . Rammed 3 | . 1 2 . . Targets Rammed 3 | . 1 2 . . Kicked . | . . . . . Crushed . | . . . . . Highest Temperature 871 | 30 294 94 . 871 Average Temperature 159 | 18 91 50 . 584 Received Heat Transfer 402 | . 231 120 . 51 Effects 14 | . . . . 14 Shutdowns 1 | . . . . 1 Energy Bleed 2 | . . . . 2 Interference 1 | . . . . 1 Short Circuit 1 | . . . . 1 Damage (minor) 2 | . . . . 2 Damage (major) 5 | . . . . 5 Damage (core) 2 | . . . . 2 Siege Activations . | . . . . . Martial Activations . | . . . . . Shielding Activations . | . . . . . Robots Disrupted . | . . . . . Combat Hostiles . | . . . . . Robots Corrupted . | . . . . . Combat Hostiles . | . . . . . Parts Fried . | . . . . . Impact Corruptions . | . . . . . Robots Melted 1 | . 1 . . . Combat Hostiles 1 | . 1 . . . Parts Melted 4 | . 4 . . . Heat Transferred 2693 | 37 1628 148 . 880 Parts Sabotaged . | . . . . . Parts Stolen . | . . . . . Parts Stripped . | . . . . . Power Chain Reactions . | . . . . . Alert | -11 -10 -10 -10 -9 ------- Run | Yrd Mat Min Exi Min Maximum Alert Level . | . . . . . Low Security (%) 100 | 100 100 100 . 100 Level 1 . | . . . . . Level 2 . | . . . . . Level 3 . | . . . . . Level 4 . | . . . . . Level 5 . | . . . . . High Security . | . . . . . Max Security . | . . . . . Peak Influence 173 | 5 173 66 . 42 Initial 61 | . 3 61 . . Average 64 | . 93 24 . 19 Influence Increases 549 | 5 396 76 . 72 Destroy 0b10 Robot/C 240 | . 140 40 . 60 Destroy 0b10 Robot/NC 25 | 5 20 . . . Destroy Leader 66 | . 46 10 . 10 Successful Hack 29 | . 29 . . . Destroy Structure 39 | . 11 26 . 2 Lose Combat Pursuer 150 | . 150 . . . Influence Decreases 507 | . 244 207 26 30 Entered New Map 124 | . 2 96 26 . Time Decay 353 | . 232 111 . 10 Lost Part 30 | . 10 . . 20 Squads Dispatched 3 | . 3 . . . Investigation 1 | . 1 . . . Extermination . | . . . . . Reinforcement 2 | . 2 . . . Assault . | . . . . . Garrison . | . . . . . Intercept . | . . . . . Searches Triggered . | . . . . . Construction Impeded . | . . . . . Haulers Reinforced . | . . . . . Active Scanning Responses . | . . . . . Cargo Convoy Interrupts . | . . . . . Stealth | -11 -10 -10 -10 -9 --------- Run | Yrd Mat Min Exi Min Distress Signals 4 | . 4 . . . Communications Jammed . | . . . . . Distress Signals . | . . . . . Times Spotted 30 | . 26 2 . 2 Peak Tracking Total 8 | . 8 2 . 2 Tactical Retreats 6 | . 6 . . . Traps | -11 -10 -10 -10 -9 ------- Run | Yrd Mat Min Exi Min Traps Triggered 1 | . 1 . . . Indirectly . | . . . . . Trap Hack Attempts . | . . . . . Triggered . | . . . . . Disarmed . | . . . . . Reprogrammed . | . . . . . Reused . | . . . . . Traps Extracted . | . . . . . Installed . | . . . . . Triggered . | . . . . . Machines | -11 -10 -10 -10 -9 ---------- Run | Yrd Mat Min Exi Min Machines Disabled . | . . . . . Max in Single Turn . | . . . . . Machines Repaired . | . . . . . Machines Dismantled . | . . . . . Machines Sabotaged . | . . . . . Overloaded Fab Kills . | . . . . . Hacking | -11 -10 -10 -10 -9 --------- Run | Yrd Mat Min Exi Min Machines Accessed 8 | . 6 . 2 . Terminals 5 | . 5 . . . Fabricators . | . . . . . Repair Stations 1 | . 1 . . . Recycling Units . | . . . . . Scanalyzers . | . . . . . Garrison Access . | . . . . . Total Hacks 18 | . 14 . 4 . Successful 8 | . 4 . 4 . Failed 10 | . 10 . . . Catastrophic 2 | . 2 . . . Database Lockouts . | . . . . . Manual 4 | . 3 . 1 . Terminals 11 | . 11 . . . Fabricators . | . . . . . Repair Stations 3 | . 3 . . . Recycling Units . | . . . . . Scanalyzers . | . . . . . Garrison Access . | . . . . . Terminal Hacks 7 | . 3 . 4 . Record 3 | . . . 3 . Branch Access Points 1 | . 1 . . . Locate Traps 1 | . 1 . . . Hauler Manifests 1 | . 1 . . . Proto ID Catalog 1 | . . . 1 . Fabricator Hacks . | . . . . . Repair Station Hacks . | . . . . . Recycling Unit Hacks . | . . . . . Scanalyzer . | . . . . . Garrison Access Hacks . | . . . . . Unauthorized Hacks 1 | . 1 . . . Terminals 1 | . 1 . . . Detonate 1 | . 1 . . . Fabricators . | . . . . . Repair Stations . | . . . . . Recycling Units . | . . . . . Scanalyzers . | . . . . . Garrison Access . | . . . . . Data Cores Recovered . | . . . . . Used . | . . . . . Hacking Detections 4 | . 4 . . . Full Trace Events . | . . . . . Feedback Events . | . . . . . Feedback Blocked . | . . . . . Robot Schematics Acquired . | . . . . . Robots Built . | . . . . . Authchips . | . . . . . Time . | . . . . . Total Robot Build Rating . | . . . . . Part Schematics Acquired . | . . . . . Parts Built . | . . . . . Authchips . | . . . . . Time . | . . . . . Total Part Build Rating . | . . . . . Parts Repaired . | . . . . . Time . | . . . . . Parts Recycled . | . . . . . Recycled Matter . | . . . . . Retrieved Matter . | . . . . . Retrieved Components . | . . . . . Parts Scanalyzed . | . . . . . Part Schematics Acquired . | . . . . . Parts Damaged . | . . . . . Bothacking | -11 -10 -10 -10 -9 ------------ Run | Yrd Mat Min Exi Min Used RIF Installer . | . . . . . Robots Hacked . | . . . . . Non-combat . | . . . . . Combat . | . . . . . Robot Hacks Applied . | . . . . . Relay Couplers Released . | . . . . . Fabnet Peak Effective % . | . . . . . Robots Rewired . | . . . . . Allies Hacked . | . . . . . Hacks Repelled . | . . . . . Allies | -11 -10 -10 -10 -9 -------- Run | Yrd Mat Min Exi Min Total Allies . | . . . . . Largest Group . | . . . . . Highest-Rated Group . | . . . . . Highest-Rated Ally . | . . . . . Total Orders . | . . . . . Ally Attacks . | . . . . . Total Damage . | . . . . . Kills . | . . . . . Allies Corrupted . | . . . . . Allies Melted . | . . . . . Intel | -11 -10 -10 -10 -9 ------- Run | Yrd Mat Min Exi Min Active Infowar (turns) . | . . . . . Robot Analysis Total . | . . . . . Derelict Logs Recovered . | . . . . . Drone Launches . | . . . . . Drone Recoveries . | . . . . . Exploration | -11 -10 -10 -10 -9 ------------- Run | Yrd Mat Min Exi Min Turns Passed 1483 | 57 668 358 363 37 Spaces Moved 798 | 47 319 207 225 . Core 31 | 31 . . . . Treads 767 | 16 319 207 225 . Legs . | . . . . . Wheels . | . . . . . Hover . | . . . . . Flight . | . . . . . Fastest Speed 50 | 50 160 160 160 . Average Speed 155 | 87 160 160 160 . Slowest Speed 160 | 160 160 160 160 . Overloaded Moves . | . . . . . Propulsion Burnouts . | . . . . . Robots Hopped . | . . . . . Potential Cave-ins . | . . . . . Cave-ins Triggered . | . . . . . Exploration Rate (%) 32 | 3 47 49 59 2 Regions Visited 4 Branch Regions 3 Pre-discovered Areas 1 | . . . 1 . Known Exits Taken 1 | . 1 . . . Unknown Exits Taken 3 | 1 . 1 1 . Scrap Searched 1 | . . 1 . . Spaces Dug . | . . . . . Terrain Destroyed 42 | . 10 30 . 2 Melee . | . . . . . Projectile 2 | . . . . 2 AOE 40 | . 10 30 . . Terrain Rammed . | . . . . . Walls Destroyed . | . . . . . Machines Disabled . | . . . . . Actions | -11 -10 -10 -10 -9 --------- Run | Yrd Mat Min Exi Min Total 921 | 59 389 220 228 25 Wait 12 | . . . . 12 Move 794 | 46 318 206 224 . Hop . | . . . . . Pick Up 14 | 5 7 1 1 . Fast Attach 1 | 1 . . . . Attach 9 | 5 1 2 1 . Detach 1 | . . . 1 . Swap 6 | . 5 . 1 . Drop . | . . . . . Fire 81 | 2 57 9 . 13 Melee . | . . . . . Ram . | . . . . . Kick . | . . . . . Crush 3 | . 1 2 . . Escape Stasis . | . . . . . Rewire . | . . . . . Trap . | . . . . . Miscellaneous . | . . . . . Route ------- -11/Scrapyard -10/Materials -10/Mines (discovered 2 exits: [*Mat] / *Exi) -10/Exiles -9/Mines History --------- Turn | Location | Event 4 | -11/Scrapyard | Discovered new exit (range 13) 58 | -11/Scrapyard | Entered Materials 130 | -10/Materials | Identified exit to Mines 309 | -10/Materials | Build established: Mutant 726 | -10/Materials | Entered Mines 970 | -10/Mines | Received a Rocket Launcher from a helpful Derelict 975 | -10/Mines | Discovered new exit (range 10) 978 | -10/Mines | Core integrity fell below 50% 1076 | -10/Mines | Deemed a non-threat by the Exiles lab entrance 1076 | -10/Mines | Discovered new exit (range 5) 1084 | -10/Mines | Entered Exiles 1123 | -10/Exiles | Met 8R-AWN 1152 | -10/Exiles | Met EX-HEX 1195 | -10/Exiles | Met EX-BIN 1214 | -10/Exiles | Aligned with FarCom system 1216 | -10/Exiles | Given EX-Vault access code 1252 | -10/Exiles | Opened EX-Vault 1265 | -10/Exiles | Found Gui. Plasma Cannon 1303 | -10/Exiles | Warned to stay clear of 0b10 Research branches 1351 | -10/Exiles | Met EX-DEC 1383 | -10/Exiles | Learned location of Zion (-6) 1428 | -10/Exiles | Discovered new exit (range 12) 1447 | -10/Exiles | Left Exiles lab with Gui. Plasma Cannon 1447 | -10/Exiles | Entered Mines 1467 | -9/Mines | Core integrity fell below 20% 1485 | -9/Mines | Core destroyed Last Messages --------------- 01464_ G-47 Trooper overheating. 01465_ K-01 Serf collects debris. 01465_ G-47 Trooper overheating. 01466_ Overheating: Gui. Plasma Cannon damaged (-13). 01468_ G-47 Trooper overheating. 01470_ G-47 Trooper heat short circuits Aluminum Leg. 01472_ Overheating: Energy bleed (-2). 01473_ Overheating: Utility Shielding damaged (-29). 01475_ Overheating: System interference. 01475_ Gui. Plasma Cannon temporarily disabled. 01483_ Destroyed Aluminum Leg. 01483_ G-47 Trooper destroyed. 01484_ Overheating: Gui. Plasma Cannon damaged (-18). 01484_ Overheating: Grenade Launcher damaged (-6). 01485_ Overheating: Core damaged (-47). Map ----- +----------------------------------------------------+ | ???????????????????????????????? | | ???????????????????????????????? | | ???????????????????????????????? | | ???????????????????????????????? | | ???????????????????????????????? | | ???????????????????????????????? | | ???????????????????????????????? | | ???????????????????????????????? | | ???????????????????????????????? | | ???????????????????????????????? | | ???????????????????????????????? | | ???????????????????????????????? | | ???????????????????????????????? | | ???????????????????????????#???? | | ??????????????????????????? ???? | | ??????????????????????????? ???? | | ??????????????????????????? ???? | | ??????????????????????????![???? | | ??????????????????????????%#???? | | ??????????????????????????!#???? | | ??????????????????????????%#???? | | ??????????????????????????=#???? | | ??????????????????????#### ###?? | | ??????????????????????# #?? | | ??????????????????????# #?? | | ??????????????????????# @ #?? | | ??????????????????????# #?? | | ??????????????????????# #?? | | ??????????????????????########?? | | ???????????????????????????????? | | ???????????????????????????????? | | | | | | | | | | | | | | | | | | | | | | | | | | | | | | | | | | | | | | | +----------------------------------------------------+ Best States ------------- Heat Dissipation 25 Energy Generation 14 Energy Capacity 250 Matter Stores 300 Matter Capacity 300 Sight Range 16 Terrain Scan Density 10 Utility Shielding 33 Evasion (%) 50 Recoil Reduction 2 Item Schematics ----------------- None Robot Schematics ------------------ None Fabricated ------------ Nothing Repaired ---------- Nothing Alien Tech Used ----------------- None Achievements -------------- It's Just You Challenges ------------ None Game ------ Seed GreatIonParser Manual? 0 Play Time 00:13:08 Cumulative 22.0 hours Start 2025.07.12 @ 14:29:42 End 2025.07.12 @ 14:41:54 Sessions 1 Manual Loads 0 Difficulty Rogue Special Mode None Game No. 35 Rogue 35 Adventurer 0 Explorer 0 Win Type - Total 0 Types 0/0/0/0/0/0/0/0/0/0 Lore% 17 Gallery% 19 Achievement% 27 Wizard Run 0 Options --------- Layout 1 ASCII 0 Keyboard 0 Movement Mouse Keybinds 0 Fullscreen 1 Font 24/Smallcaps Map View 50x35 Zoom Use 0% Tactical HUD 1 Map Filters NONE Filters NONE Steam 1 RUN: 9e3f575e-f81d-4a8a-b33d-085a52062cb6